Cogmind - Beta 14 @@@ ROGUE MODE // 2024.08.26 @ 08:47:57 Player: AppleSource Result: Destroyed by G-47 Trooper with Particle Gun Performance ------------- Evolutions (0) 0 Regions Visited (2) 400 Robots Destroyed (31) 155 Value Destroyed (574) 574 Prototype IDs (0) 0 Alien Tech Used (0) 0 Bonus (0) 0 TOTAL SCORE: 1129 Bonus ------- None Cogmind --------- Core Integrity 0/250 Matter 287/300 Energy 160/160 System Corruption 0% Temperature Cool (11) Movement Walking (680) Ox8 Location -10/Mines Parts ------- > --- POWER (1) -------- Light Nuclear Core > --- PROPULSION (2) --- Aluminum Leg > --- UTILITY (2) ------ Huge Storage Unit > --- WEAPON (2) ------- Light Assault Rifle Light Assault Rifle > --- INVENTORY (25) --- Light Ion Engine Light Treads Medium Laser Light Assault Rifle Grenade Launcher Grenade Launcher Rocket Launcher Peak State ------------ > --- POWER ------------ Light Nuclear Core > --- PROPULSION ------- Aluminum Leg Aluminum Leg > --- UTILITY ---------- Huge Storage Unit > --- WEAPON ----------- Particle Gun Light Assault Rifle > --- INVENTORY -------- Light Ion Engine Light Treads Medium Laser Light Assault Rifle Light Assault Rifle Grenade Launcher Grenade Launcher [Rating: 9] Favorites ----------- Power Light Nuclear Core Engine Ion Engine Power Core Light Nuclear Core Propulsion Aluminum Leg Treads Light Treads Leg Aluminum Leg Wheel Wheel Utility Huge Storage Unit Storage Huge Storage Unit Weapon Light Assault Rifle Energy Gun Particle Gun Ballistic Gun Light Assault Rifle Ballistic Cannon Battle Cannon Build | -11 -10 -10 ------- Run | Yrd Mat Min Slots Evolved . | . . . Power . | . . . Propulsion . | . . . Utility . | . . . Weapon . | . . . Parts Attached 17 | 7 4 6 Power 5 | 1 2 2 Engine 4 | 1 2 1 Core 1 | . . 1 Reactor . | . . . Propulsion 5 | 3 . 2 Treads 2 | 2 . . Leg 2 | . . 2 Wheel 1 | 1 . . Hover . | . . . Flight . | . . . Utility 2 | 1 1 . Device . | . . . Storage 2 | 1 1 . Processor . | . . . Hackware . | . . . Protection . | . . . Artifact . | . . . Weapon 5 | 2 1 2 Energy Gun 2 | 1 1 . Energy Cannon . | . . . Ballistic Gun 2 | 1 . 1 Ballistic Cannon 1 | . . 1 Launcher . | . . . Special Weapon . | . . . Impact Weapon . | . . . Slashing Weapon . | . . . Piercing Weapon . | . . . Special Melee Weapon . | . . . Unidentified Prototypes . | . . . Parts Lost 5 | . 1 4 Power 2 | . 1 1 Propulsion 2 | . . 2 Utility . | . . . Weapon 1 | . . 1 Highest Loss Streak 2 | . 1 2 To Critical Strikes . | . . . Average Slot Usage (%) 81 | . 84 79 Engine 7 | . 13 4 Core 6 | . . 9 Treads 10 | . 28 2 Leg 14 | . . 20 Storage 14 | . 14 14 Energy Gun 7 | . 13 5 Ballistic Gun 14 | . 14 14 Ballistic Cannon 6 | . . 8 Peak Build Rating 9 | 6 7 9 Average Rating 7 | 4 6 7 On Entrance 4 | . 6 7 Naked Turns . | . . . Heaviest Build 89 | 10 89 89 Greatest Support 40 | 40 40 40 Greatest Overweight (x) 29 | 1 2 29 Average Overweight (x) 3 | . 1 4 Largest Inventory Capacity 25 | 8 25 25 Average Capacity 22 | 6 18 25 Most Carried 8 | 2 6 8 Average Carried 6 | 1 4 7 Final Capacity 25 | 8 25 25 Final Carried 7 | 2 6 7 Class Distribution -------------------- 98% | Mutant Dominant Class ---------------- Mutant | -10/Materials Mutant | -10/Mines Resources | -11 -10 -10 ----------- Run | Yrd Mat Min Matter Collected 471 | 134 213 124 Remotely . | . . . Salvage Created 1129 | . 524 605 Parts 63 | . 39 24 Haulers Intercepted 1 | . 1 . Recyclers Shooed 3 | . 2 1 Parts Field Recycled . | . . . Retrieved Matter . | . . . Parts Self-Destructed . | . . . Prevented . | . . . Kills | -11 -10 -10 ------- Run | Yrd Mat Min Combat Hostiles Destroyed 19 | . 12 7 Guns 16 | . 12 4 Cannons 2 | . . 2 Classes Destroyed 8 | . 7 1 Worker 2 | . 1 1 Builder 1 | . 1 . Tunneler 1 | . . 1 Hauler 1 | . 1 . Recycler 6 | . 2 4 Watcher 1 | . 1 . Swarmer 8 | . 8 . Grunt 11 | . 4 7 Best Kill Streak 5 | . 5 3 Combat Bots Only 3 | . 3 2 Max Kills in Single Turn 1 | . 1 1 Gunslinging . | . . . Exploded . | . . . Melee . | . . . Uniques/NPCs Destroyed . | . . . Combat | -11 -10 -10 -------- Run | Yrd Mat Min Hostile Shots Fired 127 | . 64 63 Missed 30 | . 19 11 Damage Taken 1112 | . 424 688 Core 265 | . 105 160 Absorbed by Shields . | . . . Core Remaining (%) 100 | 100 . . Volleys Fired 95 | . 54 41 Largest 2 | . 2 2 Hottest 85 | . 85 85 Shots Fired 187 | . 108 79 Gun 177 | . 108 69 Cannon 10 | . . 10 Launcher . | . . . Special . | . . . Kinetic 106 | . 54 52 Thermal 81 | . 54 27 Explosive . | . . . Electromagnetic . | . . . Robot Hit Streak 9 | . 9 6 Robot Miss Streak 8 | . 8 3 Penetration Max . | . . . Secondary Targets 2 | . . 2 Max Gunslinging Chain 1 | . . 1 Shots Hit Robots 108 | . 56 52 Core Hits 53 | . 28 25 Critical Kills . | . . . Critical Parts Destroyed . | . . . Critical Strikes 2 | . . 2 Burn 2 | . . 2 Melee Attacks . | . . . Impact . | . . . Slashing . | . . . Piercing . | . . . Sneak Attacks . | . . . Combat Hostiles . | . . . Follow-up Attacks . | . . . Damage Inflicted 1326 | . 597 729 Guns 1113 | . 584 529 Cannons 189 | . . 189 Explosions . | . . . Melee . | . . . Ramming 24 | . 13 11 Kinetic 635 | . 217 418 Thermal 667 | . 367 300 Explosive . | . . . Electromagnetic . | . . . Impact . | . . . Slashing . | . . . Piercing . | . . . Highest Corruption . | . . . Average Corruption . | . . . Corruption Purged . | . . . Corruption Blocked . | . . . Overload Shots . | . . . Overflow Damage . | . . . Projectiles . | . . . Explosions . | . . . Melee . | . . . Knockbacks 2 | . . 2 Impact . | . . . Kinetic 2 | . . 2 Secondary . | . . . Self-Inflicted Damage . | . . . Shots . | . . . Rammed 6 | . 6 . Targets Rammed 11 | . 8 3 Kicked 3 | . . 3 Crushed 2 | . 2 . Highest Temperature 254 | . 232 254 Average Temperature 64 | . 57 74 Received Heat Transfer 474 | . 75 399 Siege Activations . | . . . Robots Corrupted . | . . . Combat Hostiles . | . . . Parts Fried . | . . . Impact Corruptions . | . . . Robots Melted 1 | . . 1 Combat Hostiles 1 | . . 1 Parts Melted 2 | . . 2 Heat Transferred 1708 | . 857 851 Parts Sabotaged . | . . . Parts Stolen . | . . . Parts Stripped . | . . . Power Chain Reactions . | . . . Alert | -11 -10 -10 ------- Run | Yrd Mat Min Peak Influence 270 | . 270 139 Initial 49 | . . 49 Average 53 | . 143 16 Maximum Alert Level 1 | . 1 . Low Security (%) 92 | 100 74 100 Level 1 7 | . 25 . Level 2 . | . . . Level 3 . | . . . Level 4 . | . . . Level 5 . | . . . High Security . | . . . Max Security . | . . . Squads Dispatched 2 | . 2 . Investigation 1 | . 1 . Extermination . | . . . Reinforcement 1 | . 1 . Assault . | . . . Garrison . | . . . Intercept . | . . . Searches Triggered . | . . . Construction Impeded . | . . . Haulers Reinforced . | . . . Active Scanning Responses . | . . . Cargo Convoy Interrupts . | . . . Stealth | -11 -10 -10 --------- Run | Yrd Mat Min Distress Signals 2 | . 2 . Communications Jammed . | . . . Distress Signals . | . . . Times Spotted 36 | . 28 8 Peak Tracking Total 4 | . 4 2 Tactical Retreats 1 | . 1 . Traps | -11 -10 -10 ------- Run | Yrd Mat Min Traps Triggered 1 | . 1 . Indirectly . | . . . Trap Hack Attempts . | . . . Triggered . | . . . Disarmed . | . . . Reprogrammed . | . . . Reused . | . . . Traps Extracted . | . . . Installed . | . . . Triggered . | . . . Machines | -11 -10 -10 ---------- Run | Yrd Mat Min Machines Disabled . | . . . Max in Single Turn . | . . . Machines Repaired . | . . . Machines Dismantled . | . . . Machines Sabotaged . | . . . Overloaded Fab Kills . | . . . Hacking | -11 -10 -10 --------- Run | Yrd Mat Min Machines Accessed . | . . . Terminals . | . . . Fabricators . | . . . Repair Stations . | . . . Recycling Units . | . . . Scanalyzers . | . . . Garrison Access . | . . . Total Hacks . | . . . Successful . | . . . Failed . | . . . Catastrophic . | . . . Database Lockouts . | . . . Manual . | . . . Terminals . | . . . Fabricators . | . . . Repair Stations . | . . . Recycling Units . | . . . Scanalyzers . | . . . Garrison Access . | . . . Terminal Hacks . | . . . Fabricator Hacks . | . . . Repair Station Hacks . | . . . Recycling Unit Hacks . | . . . Scanalyzer . | . . . Garrison Access Hacks . | . . . Unauthorized Hacks . | . . . Terminals . | . . . Fabricators . | . . . Repair Stations . | . . . Recycling Units . | . . . Scanalyzers . | . . . Garrison Access . | . . . Data Cores Recovered . | . . . Used . | . . . Hacking Detections . | . . . Full Trace Events . | . . . Feedback Events . | . . . Feedback Blocked . | . . . Robot Schematics Acquired . | . . . Robots Built . | . . . Authchips . | . . . Time . | . . . Total Robot Build Rating . | . . . Part Schematics Acquired . | . . . Parts Built . | . . . Authchips . | . . . Time . | . . . Total Part Build Rating . | . . . Parts Repaired . | . . . Time . | . . . Parts Recycled . | . . . Recycled Matter . | . . . Retrieved Matter . | . . . Retrieved Components . | . . . Parts Scanalyzed . | . . . Part Schematics Acquired . | . . . Parts Damaged . | . . . Bothacking | -11 -10 -10 ------------ Run | Yrd Mat Min Used RIF Installer . | . . . Robots Hacked . | . . . Non-combat . | . . . Combat . | . . . Robot Hacks Applied . | . . . Relay Couplers Released . | . . . Fabnet Peak Effective % . | . . . Robots Rewired . | . . . Allies Hacked . | . . . Hacks Repelled . | . . . Allies | -11 -10 -10 -------- Run | Yrd Mat Min Total Allies . | . . . Largest Group . | . . . Highest-Rated Group . | . . . Highest-Rated Ally . | . . . Total Orders . | . . . Ally Attacks . | . . . Total Damage . | . . . Kills . | . . . Allies Corrupted . | . . . Allies Melted . | . . . Intel | -11 -10 -10 ------- Run | Yrd Mat Min Robot Analysis Total . | . . . Derelict Logs Recovered 1 | . . 1 Drone Launches . | . . . Drone Recoveries . | . . . Exploration | -11 -10 -10 ------------- Run | Yrd Mat Min Turns Passed 3964 | 74 1178 2712 Spaces Moved 1014 | 43 401 570 Core 22 | 7 . 15 Treads 500 | 36 401 63 Legs 492 | . . 492 Wheels . | . . . Hover . | . . . Flight . | . . . Fastest Speed 50 | 50 160 320 Average Speed 355 | 143 242 450 Slowest Speed 1500 | 160 320 1500 Overloaded Moves . | . . . Propulsion Burnouts . | . . . Robots Hopped . | . . . Cave-ins Triggered . | . . . Exploration Rate (%) 45 | 3 56 77 Regions Visited 2 Branch Regions 1 Pre-discovered Areas . | . . . Known Exits Taken . | . . . Unknown Exits Taken 2 | 1 1 . Scrap Searched 1 | . . 1 Spaces Dug . | . . . Terrain Destroyed 2 | . . 2 Melee . | . . . Projectile 2 | . . 2 AOE . | . . . Terrain Rammed . | . . . Walls Destroyed . | . . . Machines Disabled . | . . . Actions | -11 -10 -10 --------- Run | Yrd Mat Min Total 1187 | 53 500 634 Wait 37 | . 25 12 Move 1012 | 42 400 570 Hop . | . . . Pick Up 8 | 2 5 1 Fast Attach 12 | 7 2 3 Attach 2 | . 1 1 Detach 4 | 1 2 1 Swap 3 | . 1 2 Drop 3 | 1 2 . Fire 95 | . 54 41 Melee . | . . . Ram . | . . . Kick 3 | . . 3 Crush 8 | . 8 . Escape Stasis . | . . . Rewire . | . . . Trap . | . . . Miscellaneous . | . . . Route ------- -11/Scrapyard -10/Materials (discovered 2 exits: [*Mat] / [*Min]) -10/Mines (discovered 2 exits: [*Mat x2]) History --------- Turn | Location | Event 14 | -11/Scrapyard | Discovered new exit (range 15) 75 | -11/Scrapyard | Entered Materials 304 | -10/Materials | Build established: Mutant 591 | -10/Materials | Discovered new exit (range 15) 1183 | -10/Materials | Discovered new exit (range 12) 1253 | -10/Materials | Entered Mines 1362 | -10/Mines | Discovered new exit (range 10) 1373 | -10/Mines | Learned Materials non-interactive machine intel 1477 | -10/Mines | Core integrity fell below 50% 2200 | -10/Mines | A weapon hastily lodged in a ceiling crevice suddenly fell to the ground 2333 | -10/Mines | Received a Rocket Launcher from a helpful Derelict 3421 | -10/Mines | Discovered new exit (range 5) 3956 | -10/Mines | Core integrity fell below 20% 3965 | -10/Mines | Destroyed by G-47 Trooper with Particle Gun Last Messages --------------- U-05 Engineer builds a Wall. K-01 Serf collects debris. G-34 Mercenary knocked back. Acquired 6 matter. G-34 Mercenary destroyed. K-01 Serf collects debris. Acquired 6 matter. K-01 Serf collects debris. U-05 Engineer builds a Wall. K-01 Serf cleans the Plasma Injector. EXIT=FOUND Kicked K-01 Serf. Kicked G-34 Mercenary out of the way. Acquired 4 matter. Battle Cannon destroyed. Critical hit (Burn: +37). Kicked G-34 Mercenary out of the way. Acquired 3 matter. Aluminum Leg destroyed. G-34 Mercenary destroyed. Map ----- +----------------------------------------------------+ | """ ###?#= #???# #???## % ## #???????? | | """ ##???#%######???# !%##### #????????? | | ######%##??????##! % =%!=%% ### #????????? | | %%%##?????## ! %%%=| |= #????#????????? | | ####### #??????# =% ######## ##?????????????? | | #####??#### #??????# ##?????####??????????????? | | ???????# #??????# #####???????????????????? | | #####??# ####??????## < ##??????????????????? | | # #### #??????????## #??????????????????? | | ## ##??????????##### #??????????????????? | | #??????????????## ##??????????????????? | | #???????????????#%##???????????????????? | | ## ##???????????????# #????????????????????? | | ######????????????????# #????????????????????? | | ##????????????????????# #????????????????????? | | # ##???????????????????# #????????????????????? | | ## #???????????????????# #????????????????????? | | ## #???????????????????# #????????????????????? | | # #???????????#$####### #????????????????????? | | # ##????? #????????????????????? | | # #?????????????######## #????????????????????? | | # #????????????????????# #????????????????????? | | # #??????????????????### #????????????????????? | | # ##??????????????????# #????????????????????? | | # #?###???????????????# ###????????????????????? | | ### ##???????????####@###????????????????????? | | #???????????# %% g #????????????????????? | | """ #???????????# """" #????????????????????? | | """ ##???????????# """" #????????????????????? | | """ #????????????# """" #????????????????????? | | #???????????# #????????????????????? | | ### #???????????########????????????????????? | | ??## #???????????????????????????????????????? | | ???#######???????????????????????????????????????? | | ?????????????????????????????????????????????????? | | ?????????????????????????????????????????????????? | | | | | | | | | | | | | | | | | | | | | | | | | | | | | +----------------------------------------------------+ Best States ------------- Heat Dissipation 25 Energy Generation 14 Energy Capacity 250 Matter Stores 300 Matter Capacity 300 Sight Range 16 Terrain Scan Density 10 Evasion (%) 50 Recoil Reduction 2 Item Schematics ----------------- None Robot Schematics ------------------ None Fabricated ------------ Nothing Alien Tech Used ----------------- None Achievements -------------- None Challenges ------------ None Game ------ Seed ShadeHypercooledAxe Manual? 0 Play Time 00:10:45 Cumulative 17.4 hours Start 2024.08.26 @ 08:31:52 End 2024.08.26 @ 08:47:57 Sessions 1 Manual Loads 0 Difficulty Rogue Special Mode None Game No. 20 Rogue 8 Adventurer 12 Explorer 0 Win Type - Total 0 Types 0/0/0/0/0/0/0/0/0 Lore% 6 Gallery% 16 Achievement% 15 Wizard Run 0 Options --------- Layout 0 ASCII 0 Keyboard 1 Movement Numpad Keybinds 0 Fullscreen 2 Font 24/Smallcaps Map View 113x50 Zoom Use 0% Tactical HUD 0 Map Filters NONE Filters NONE Steam 1 RUN: 02a54a19-dae0-4575-80d2-cd28f025accc